Cogmind - Beta 16 @@@ ROGUE MODE // 2026.01.28 @ 00:24:49 Player: opdo Result: Destroyed by G-73 Enforcer with Phase Gun Performance ------------- Evolutions (6) 3000 Regions Visited (16) 3200 Robots Destroyed (222) 1110 Value Destroyed (8441) 8441 Prototype IDs (12) 240 Alien Tech Used (0) 0 Bonus (4033) 4033 TOTAL SCORE: 20024 Bonus ------- High Alert Combat Kills 319 Follower Combat Kills 547 Awakened Behemoth Slayer 1000 Met Warlord at Base 500 MAIN.C Attacked Warlord 500 Warlord Defense Kills 1612 Friendly Fire -445 Cogmind --------- Core Integrity 0/1150 Matter 208/300 Energy 100/100 System Corruption 2% Temperature Cool (9) Movement Core (1400) Ox27 Location -4/Extension Parts ------- > --- POWER (2) -------- (None) > --- PROPULSION (6) --- (None) > --- UTILITY (8) ------ Huge Storage Unit Improved Signal Interpreter Armor Integrity Analyzer > --- WEAPON (3) ------- CR-A16's Behemoth Slayer > --- INVENTORY (25) --- Fission Core Neutrino Core Light Antimatter Reactor Flexi-carbon Leg Advanced Cryofiber Web High-capacity Storage Unit Hardened Heavy Armor Plating Improved Shock Absorption System Long-range Tractor Beam Heavy Disruptor Cannon KE Penetrator Heavy Gauss Cannon Chainsword Self-destruct Interrupter (1) Peak State ------------ > --- POWER ------------ Neutrino Core Improved Quantum Reactor > --- PROPULSION ------- Improved Treads Flexi-carbon Leg Flexi-carbon Leg Flexi-carbon Leg Thunder Leg Myomer Leg > --- UTILITY ---------- Huge Storage Unit Advanced Trap Scanner Improved Sensor Array Improved Signal Interpreter Targeting Computer Armor Integrity Analyzer Improved Hacking Suite Hacking Drone Bay > --- WEAPON ----------- Mass Driver Hypervelocity Gauss Cannon Molecular Scythe > --- INVENTORY -------- Neutrino Core Light Antimatter Reactor Light Antimatter Reactor Light Treads Improved Treads Improved Treads Flexi-carbon Leg Advanced Cryofiber Web High-capacity Storage Unit Large Matter Pod Hardened Heavy Armor Plating Insulated Plating Improved Shock Absorption System Advanced System Shield Long-range Tractor Beam Heavy Disruptor Cannon KE Penetrator Heavy Flak Cannon Heavy Flak Cannon Precision Grenade Launcher Chainsword CR-A16's Behemoth Slayer Self-destruct Interrupter [Rating: 111] Favorites ----------- Power Enhanced Nuclear Core Engine Heavy Ion Engine Power Core Enhanced Nuclear Core Reactor Improved Quantum Reactor Propulsion Medium Treads Treads Medium Treads Leg Flexi-carbon Leg Wheel Wheel Utility Improved Signal Interpreter Device Improved Sensor Array Storage Huge Storage Unit Processor Improved Signal Interpreter Hackware Improved Hacking Suite Protection Layered Light Armor Plating Weapon Flak Cannon Ballistic Gun Heavy Assault Rifle Ballistic Cannon Flak Cannon Launcher Mini Grenade Launcher Impact Weapon Powered Hammer Slashing Weapon Chainsword Piercing Weapon CR-A16's Behemoth Slayer Build | -11 -10 -10 -9 -9 -8 -7 -7 -6 -5 -5 -5 -5 -5 -4 -4 -4 ------- Run | Yrd Mat Min Mat Sto Mat Fac Low Zio Pro Fac Upp Upp War Pro Fac Ext Slots Evolved 12 | . . . 2 . 2 2 . . . 4 . . . . 2 . Power 1 | . . . . . . . . . . 1 . . . . . . Propulsion 4 | . . . 1 . 1 . . . . 1 . . . . 1 . Utility 6 | . . . 1 . 1 2 . . . 1 . . . . 1 . Weapon 1 | . . . . . . . . . . 1 . . . . . . Parts Attached 171 | 7 7 . 24 13 18 19 . 4 11 9 . . 8 7 3 41 Power 18 | 1 1 . 1 . 2 2 . . 1 4 . . 2 . 1 3 Engine 8 | 1 1 . 1 . 2 1 . . . 2 . . . . . . Core 6 | . . . . . . 1 . . 1 2 . . . . . 2 Reactor 4 | . . . . . . . . . . . . . 2 . 1 1 Propulsion 63 | 2 1 . 12 6 5 4 . 1 4 1 . . 2 3 . 22 Treads 45 | 2 . . 7 6 5 4 . 1 4 1 . . 2 3 . 10 Leg 12 | . . . 3 . . . . . . . . . . . . 9 Wheel 6 | . 1 . 2 . . . . . . . . . . . . 3 Hover . | . . . . . . . . . . . . . . . . . Flight . | . . . . . . . . . . . . . . . . . Utility 43 | 2 3 . 5 1 4 8 . . 3 3 . . 2 1 1 10 Device 14 | 1 1 . . 1 1 1 . . 1 1 . . 1 1 1 4 Storage 4 | 1 2 . . . . 1 . . . . . . . . . . Processor 12 | . . . 2 . 3 2 . . 1 . . . 1 . . 3 Hackware 2 | . . . . . . . . . . 1 . . . . . 1 Protection 11 | . . . 3 . . 4 . . 1 1 . . . . . 2 Artifact . | . . . . . . . . . . . . . . . . . Weapon 47 | 2 2 . 6 6 7 5 . 3 3 1 . . 2 3 1 6 Energy Gun . | . . . . . . . . . . . . . . . . . Energy Cannon . | . . . . . . . . . . . . . . . . . Ballistic Gun 12 | 2 2 . 5 1 2 . . . . . . . . . . . Ballistic Cannon 22 | . . . . 3 3 3 . 1 1 1 . . 2 3 . 5 Launcher 6 | . . . 1 1 1 1 . 1 1 . . . . . . . Special Weapon . | . . . . . . . . . . . . . . . . . Impact Weapon 2 | . . . . 1 . 1 . . . . . . . . . . Slashing Weapon 3 | . . . . . 1 . . 1 . . . . . . 1 . Piercing Weapon 2 | . . . . . . . . . 1 . . . . . . 1 Special Melee Weapon . | . . . . . . . . . . . . . . . . . Unidentified Prototypes 9 | . . . 1 1 . 2 . 1 . . . . 2 . 2 . Parts Lost 90 | . 2 . 6 2 2 4 . . 9 2 . . 3 8 . 52 Power 8 | . . . . 1 1 . . . 1 . . . . . . 5 Propulsion 40 | . 1 . 3 1 . . . . 4 . . . 2 4 . 25 Utility 27 | . 1 . 1 . 1 4 . . 3 1 . . . 2 . 14 Weapon 15 | . . . 2 . . . . . 1 1 . . 1 2 . 8 Highest Loss Streak 22 | . 1 . 2 1 1 2 . . 5 1 . . 2 4 . 22 To Critical Strikes 6 | . . . . . . . . . . . . . . . . 6 Average Backups 20 | 1 10 15 19 19 19 19 24 23 21 21 22 23 22 19 20 18 Power 2 | . . 2 2 2 2 2 2 2 1 1 2 2 2 2 2 2 Propulsion 4 | . . . 4 4 4 6 7 6 5 3 4 4 5 2 2 1 Utility 5 | . 4 7 6 6 6 3 5 5 5 5 7 7 7 7 6 7 Weapon 7 | . 4 6 6 7 7 7 10 9 8 9 9 9 8 7 9 7 Tool/Special . | . . . . . . . . . . . . . . . . . Unused Backups 42 | . 3 . 10 1 4 5 . 3 1 2 . 1 . . . 12 Power 7 | . . . 1 . . 3 . . . 1 . . . . . 2 Propulsion 8 | . 2 . 4 . . 1 . 1 . . . . . . . . Utility 12 | . . . 1 . 2 1 . 1 1 . . . . . . 6 Weapon 15 | . 1 . 4 1 2 . . 1 . 1 . 1 . . . 4 Tool/Special . | . . . . . . . . . . . . . . . . . Average Slot Usage (%) 95 | . 99 100 97 96 94 99 100 100 93 89 94 94 94 95 93 82 Engine 3 | . 14 14 11 8 7 . . . . 2 . . . . . . Core 4 | . . . . . . 6 7 7 6 7 11 11 10 . . 2 Reactor 1 | . . . . . . . . . . . . . . 11 10 5 Treads 25 | . 19 14 23 33 33 29 30 30 29 24 23 23 23 27 26 13 Wheel 1 | . 8 14 5 . . . . . . . . . . . . 2 Device 8 | . 13 14 1 2 7 6 7 7 7 10 11 11 10 11 20 10 Storage 7 | . 14 14 11 11 9 7 7 7 7 5 5 5 5 5 5 5 Processor 14 | . . . 9 11 16 23 23 23 13 11 11 11 12 13 10 13 Hackware 1 | . . . . . . . . . . 2 5 5 5 5 5 4 Protection 5 | . . . 10 8 1 6 7 7 11 3 5 5 4 . . . Ballistic Gun 5 | . 28 28 21 5 6 . . . . . . . . . . . Ballistic Cannon 9 | . . . . 13 5 11 15 13 13 11 11 11 11 14 13 8 Slashing Weapon 1 | . . . . . 1 . . . . 3 4 4 5 . 1 3 Peak Build Rating 111 | 7 12 12 19 23 30 52 52 55 57 85 87 87 92 87 93 111 Average Rating 51 | 5 9 12 16 20 27 48 52 53 53 73 85 86 86 74 89 87 On Entrance 48 | . 7 12 12 19 17 27 52 52 54 54 85 87 86 87 77 93 Avg Prop Armor Cover (%) 11 | . 11 11 13 . . . . . . . . . . . . 7 Naked Turns . | . . . . . . . . . . . . . . . . . Heaviest Build 144 | 13 54 54 61 65 63 103 103 105 111 129 125 125 142 144 143 141 Greatest Support 156 | 40 40 10 60 63 80 104 104 114 116 156 156 156 156 139 122 144 Greatest Overweight (x) 39 | . 5 5 6 1 1 . . . 1 . . . 1 1 1 39 Average Overweight (x) . | . 2 5 2 . . . . . . . . . . . 1 1 Largest Inventory Capacity 25 | 8 20 20 20 20 20 25 25 25 25 25 25 25 25 25 25 25 Average Capacity 22 | 7 14 20 20 20 20 20 25 25 25 25 25 25 25 25 25 25 Most Carried 25 | 2 15 17 20 20 20 25 25 25 25 25 25 25 25 25 25 25 Average Carried 21 | 1 10 15 19 19 19 20 25 24 23 23 24 24 24 21 23 21 Final Capacity 25 | 8 20 20 20 20 20 25 25 25 25 25 25 25 25 25 25 25 Final Carried 25 | 2 15 17 20 20 20 25 25 25 22 24 25 25 25 21 25 16 Class Distribution -------------------- 42% | Mutant 18% | Assassin 18% | Skirmisher 12% | Scavenger-Mutant 3% | Scavenger-Skirmisher Dominant Class ---------------- Mutant | -10/Materials Mutant | -10/Mines Mutant | -9/Materials Mutant | -9/Storage Mutant | -8/Materials Mutant | -7/Factory Skirmisher | -7/Lower Caves Skirmisher | -6/Zion Mutant | -5/Proximity Caves Assassin | -5/Factory Assassin | -5/Upper Caves Assassin | -5/Upper Caves Assassin | -5/Warlord Scavenger-Skirmisher | -4/Proximity Caves Scavenger-Skirmisher | -4/Factory Scavenger-Mutant | -4/Extension Resources | -11 -10 -10 -9 -9 -8 -7 -7 -6 -5 -5 -5 -5 -5 -4 -4 -4 ----------- Run | Yrd Mat Min Mat Sto Mat Fac Low Zio Pro Fac Upp Upp War Pro Fac Ext Matter Collected 7344 | 250 293 106 1027 518 690 757 41 61 640 389 63 356 588 457 44 1064 Remotely . | . . . . . . . . . . . . . . . . . Salvage Created 8238 | 14 367 145 1180 644 757 928 . . 285 804 52 376 852 192 44 1598 Parts 426 | 4 18 6 85 43 67 33 . . 14 52 6 17 28 3 . 50 Haulers Intercepted 8 | . 1 . 2 . 1 2 . . . 1 . . . . . 1 Recyclers Shooed 6 | . 1 . 3 1 . . . . . 1 . . . . . . Parts Field Recycled . | . . . . . . . . . . . . . . . . . Retrieved Matter . | . . . . . . . . . . . . . . . . . Parts Self-Destructed 33 | . . . . . . . 3 . 11 . 4 12 . 3 . . Prevented 1 | . . . . . . . . . 1 . . . . . . . Parts Restored . | . . . . . . . . . . . . . . . . . Kills | -11 -10 -10 -9 -9 -8 -7 -7 -6 -5 -5 -5 -5 -5 -4 -4 -4 ------- Run | Yrd Mat Min Mat Sto Mat Fac Low Zio Pro Fac Upp Upp War Pro Fac Ext Combat Hostiles Destroyed 182 | . 7 2 29 19 30 22 . . 12 13 5 5 12 6 . 20 Melee 16 | . . . . . 4 4 . . . 1 . . 1 . . 6 Guns 52 | . 7 2 25 4 14 . . . . . . . . . . . Cannons 77 | . . . . 15 6 12 . . 6 8 1 2 11 6 . 10 AOE 31 | . . . 4 . 6 3 . . 5 4 4 3 . . . 2 Classes Destroyed 21 | 1 3 . 4 1 2 3 . . 1 . . . 6 . . . Worker 4 | . . . . 1 . 2 . . . . . . . . . 1 Builder 5 | . . . 1 . 2 . . . . 1 . . . . . 1 Tunneler 2 | 1 . . . . . . . . . 1 . . . . . . Hauler 8 | . 1 . 2 . 1 2 . . . 1 . . . . . 1 Recycler 6 | . . . 1 . . 2 . . . 1 . . . . . 2 Mechanic 1 | . . . . . . . . . . . . . 1 . . . Operator 1 | . . . . . . 1 . . . . . . . . . . Watcher 9 | . 2 . 3 . 2 . . . . . . . . . 1 1 Swarmer 51 | . . . 11 . 15 4 . . 8 4 5 4 . . . . Saboteur 1 | . . . . . . . . . . . . . 1 . . . Grunt 69 | . 7 2 10 12 9 9 . . . 3 . . 5 3 . 9 Brawler 2 | . . . . . . . . . . . . . 1 . . 1 Duelist 1 | . . . . . 1 . . . . . . . . . . . Sentry 32 | . . . 8 7 4 5 . . 1 . . 1 . . . 6 Demolisher 2 | . . . . . . 1 . . . . . . 1 . . . Hunter 11 | . . . . . 1 . . . 2 4 . . . 2 . 2 Programmer 9 | . . . . . . 4 . . . 2 . . 2 1 . . Behemoth 3 | . . . . . . . . . 1 . . . . . . 2 Striker 1 | . . . . . . . . . . . . . 1 . . . Executioner 1 | . . . . . . . . . . . . . 1 . . . Thug 2 | . . . . . . . . . . . . . 2 . . . Mutant 1 | . . . . . . . . . . . . . 1 . . . Best Kill Streak 6 | 1 3 2 4 6 6 5 . . 4 6 5 4 5 3 1 3 Combat Bots Only 6 | . 2 2 4 6 5 4 . . 4 5 5 4 3 3 . 3 Max Kills in Single Turn 5 | 1 1 1 3 2 5 2 . . 2 3 3 3 2 1 1 2 Gunslinging . | . . . . . . . . . . . . . . . . . Exploded 4 | . . . 2 . 4 2 . . 2 2 3 3 . . . 2 Melee 1 | . . . . . 1 1 . . . 1 . . 1 . . 1 Uniques/NPCs Destroyed . | . . . . . . . . . . . . . . . . . Combat | -11 -10 -10 -9 -9 -8 -7 -7 -6 -5 -5 -5 -5 -5 -4 -4 -4 -------- Run | Yrd Mat Min Mat Sto Mat Fac Low Zio Pro Fac Upp Upp War Pro Fac Ext Hostile Shots Fired 1551 | . 44 13 153 87 125 261 . . 117 108 7 13 49 133 . 441 Missed 473 | . 10 2 47 22 40 95 . . 30 38 4 4 13 47 . 121 Hits 1078 | . 34 11 106 65 85 166 . . 87 70 3 9 36 86 . 320 Melee 4 | . . . . . 4 . . . . . . . . . . . Projectile 1074 | . 34 11 106 65 81 166 . . 87 70 3 9 36 86 . 320 AOE 10 | . . . . . . . . . . 1 . . 9 . . . Critical Strikes 53 | . 1 1 5 2 6 5 . . 2 4 . . 1 4 . 22 Damage Taken 17638 | . 453 166 1170 997 1141 1722 . . 1663 1235 42 184 1149 892 . 6824 Core 2303 | . 88 57 93 131 96 142 . . 68 169 . 23 152 121 . 1163 Absorbed by Shields 1001 | . . . . . . . . . . . . . 139 593 . 269 Reduced by Siege Mode 7 | . . . . . . . . . . . . . . . . 7 Redirected to Shielding 105 | . . . . . . 105 . . . . . . . . . . Regen/Repaired (Parts) 394 | . . . . . . 117 . 46 . . . . 231 . . . Core Remaining (%) 65 | 100 . 42 . 44 82 . . . 70 . . . . 53 . . Volleys Fired 473 | 2 47 10 86 41 53 41 . . 42 35 5 5 32 28 1 45 Largest 3 | 2 2 2 2 2 2 2 . . 2 3 2 3 2 3 1 2 Hottest 128 | 40 46 46 56 74 74 77 . . 77 116 91 127 107 128 44 99 Shots Fired 897 | 4 94 20 168 81 92 77 1 . 65 70 7 11 64 60 1 82 Gun 350 | 4 94 20 164 22 43 3 . . . . . . . . . . Cannon 518 | . . . . 54 47 71 1 . 62 62 4 10 64 60 1 82 Launcher 29 | . . . 4 5 2 3 . . 3 8 3 1 . . . . Special . | . . . . . . . . . . . . . . . . . Kinetic 868 | 4 94 20 164 76 90 74 1 . 62 62 4 10 64 60 1 82 Thermal . | . . . . . . . . . . . . . . . . . Explosive 16 | . . . 4 5 2 . . . 1 . 3 1 . . . . Electromagnetic 13 | . . . . . . 3 . . 2 8 . . . . . . Robot Hit Streak 24 | 3 8 4 21 13 24 16 . . 13 5 3 4 5 12 1 8 Robot Miss Streak 10 | 1 3 2 5 6 6 6 . . 3 7 2 2 4 9 4 10 Penetration Max 1 | . . . . . . . . . . . . . 1 . . 1 Secondary Targets 2 | . . 1 1 . . . . . . . . . . . . . Max Gunslinging Chain 1 | . . 1 1 . . . . . . . . . . . . . Shots Hit Robots 678 | 3 63 12 107 55 77 79 . . 42 35 4 20 36 46 3 96 Core Hits 503 | 2 24 5 61 51 68 83 . . 19 27 8 15 29 34 2 75 Critical Kills 21 | 1 1 . . . 1 . . . . 3 . 1 12 1 . 1 Critical Parts Destroyed 24 | . 2 . 1 . . 1 . . . 1 1 . 15 2 . 1 Critical Strikes 67 | 1 3 . 1 . 2 5 . . 1 4 1 1 32 5 1 10 Destroy 48 | 1 3 . 1 . 1 . . . . 4 1 1 31 3 . 2 Blast 11 | . . . . . . 4 . . 1 . . . 1 2 . 3 Smash 1 | . . . . . . 1 . . . . . . . . . . Sever 6 | . . . . . 1 . . . . . . . . . 1 4 Impale 1 | . . . . . . . . . . . . . . . . 1 Melee Attacks 146 | . . . . 5 23 32 . 1 4 14 . 15 . . 4 48 Impact 46 | . . . . 5 10 31 . . . . . . . . . . Slashing 91 | . . . . . 13 1 . 1 . 14 . 15 . . 4 43 Piercing 9 | . . . . . . . . . 4 . . . . . . 5 Sneak Attacks 10 | . . . . . 1 3 . . . 1 . . . . . 5 Combat Hostiles . | . . . . . . . . . . . . . . . . . Follow-up Attacks 3 | . . . . . . . . . . . . . . . . 3 Damage Inflicted 19598 | 27 621 187 2220 1128 2105 2743 . . 1139 1580 317 1196 1012 1122 87 4114 Guns 3529 | 27 575 187 1816 292 632 . . . . . . . . . . . Cannons 8855 | . . . . 747 771 1732 . . 796 730 33 112 1012 1122 7 1793 Explosions 2741 | . . . 382 30 372 189 . . 247 716 284 179 . . . 342 Melee 4280 | . . . . . 297 789 . . 96 134 . 905 . . 80 1979 Ramming 193 | . 46 . 22 59 33 33 . . . . . . . . . . Kinetic 12384 | 27 575 187 1816 1039 1403 1732 . . 796 730 33 112 1012 1122 7 1793 Thermal 524 | . . . . . . . . . . 182 . . . . . 342 Explosive 1421 | . . . 382 30 372 . . . 174 . 284 179 . . . . Electromagnetic 796 | . . . . . . 189 . . 73 534 . . . . . . Impact 707 | . . . . . . 707 . . . . . . . . . . Slashing 3359 | . . . . . 297 82 . . . 134 . 905 . . 80 1861 Piercing 214 | . . . . . . . . . 96 . . . . . . 118 Highest Corruption 5 | . . . 2 4 5 5 5 5 . 3 3 4 4 3 2 2 Average Corruption 3 | . . . 2 3 5 3 5 5 . 2 3 3 3 2 2 2 Corruption Purged . | . . . . . . . . . . . . . . . . . Corruption Blocked . | . . . . . . . . . . . . . . . . . Effects 154 | . . . 20 27 1 46 11 2 . 3 10 11 3 3 1 16 Message Errors 38 | . . . 4 4 1 16 1 . . 2 2 2 2 2 . 2 Matter Fused 38 | . . . 6 5 . 11 4 2 . . 4 2 . . 1 3 Heat Flow Errors 17 | . . . 4 5 . 4 3 . . . . . . . . 1 Energy Discharges 22 | . . . 4 4 . 8 1 . . . . 2 . . . 3 Parts Rejected 5 | . . . . 1 . 1 . . . . . 1 . . . 2 Parts Fused 3 | . . . . 1 . . . . . . 1 . 1 . . . Data Loss (minor) 16 | . . . 1 5 . 4 . . . 1 . 3 . . . 2 Data Loss (major) 9 | . . . 1 . . 1 1 . . . 3 1 . 1 . 1 Misfires 2 | . . . . . . . 1 . . . . . . . . 1 Alerts 2 | . . . . 1 . 1 . . . . . . . . . . Weapon Failures 2 | . . . . 1 . . . . . . . . . . . 1 Overload Shots . | . . . . . . . . . . . . . . . . . Overflow Damage 787 | . . . 1 . 4 255 . . 27 18 . 224 . 20 . 238 Projectiles 69 | . . . . . 4 5 . . 4 14 . . . 20 . 22 Explosions 28 | . . . 1 . . . . . 23 4 . . . . . . Melee 690 | . . . . . . 250 . . . . . 224 . . . 216 Knockbacks 71 | . 2 . . 15 14 10 . . 5 2 1 . 1 7 . 14 Impact 6 | . 2 . . . . 4 . . . . . . . . . . Kinetic 63 | . . . . 15 12 6 . . 5 2 1 . 1 7 . 14 Secondary 2 | . . . . . 2 . . . . . . . . . . . Self-Inflicted Damage 270 | . 22 . 6 110 . . . . 31 . . . . . . 101 Shots 7 | . . . 1 4 . . . . 1 . . . . . . 1 Rammed 19 | . 4 . 4 4 4 3 . . . . . . . . . . Targets Rammed 22 | . 4 . 4 4 5 5 . . . . . . . . . . Kicked . | . . . . . . . . . . . . . . . . . Crushed 3 | . . . . . 1 2 . . . . . . . . . . Highest Temperature 365 | . 48 34 282 269 53 274 226 . 86 308 66 117 355 228 . 365 Average Temperature 76 | . 13 14 49 59 19 54 94 . 34 108 35 48 155 57 . 107 Received Heat Transfer 4717 | . 252 114 369 438 423 402 . . 69 90 . 18 154 86 . 2302 Effects 8 | . . . . . . 3 . . . 1 . . 1 . . 3 Shutdowns 1 | . . . . . . . . . . . . . . . . 1 Energy Bleed 1 | . . . . . . . . . . 1 . . . . . . Interference 4 | . . . . . . 3 . . . . . . . . . 1 Matter Decay 1 | . . . . . . . . . . . . . 1 . . . Damage (minor) 1 | . . . . . . . . . . . . . . . . 1 Siege Activations 2 | . . . . . . . . . . . . . 1 . . 1 Total Turns 22 | . . . . . . . . . . . . . 6 . . 16 Longest Duration 16 | . . . . . . . . . . . . . 6 . . 16 Martial Activations . | . . . . . . . . . . . . . . . . . Shielding Activations . | . . . . . . . . . . . . . . . . . Robots Disrupted 1 | . . . . . . 1 . . . . . . . . . . Combat Hostiles 1 | . . . . . . 1 . . . . . . . . . . Robots Corrupted 5 | . . . . . . 5 . . . . . . . . . . Combat Hostiles 3 | . . . . . . 3 . . . . . . . . . . Parts Fried 9 | . . . . . . 6 . . . 3 . . . . . . Impact Corruptions 9 | . . . . 1 . 8 . . . . . . . . . . Robots Melted . | . . . . . . . . . . . . . . . . . Combat Hostiles . | . . . . . . . . . . . . . . . . . Parts Melted 1 | . . . . 1 . . . . . . . . . . . . Heat Transferred 300 | . . . . . . . . . . 150 . . . . . 150 Parts Sabotaged . | . . . . . . . . . . . . . . . . . Parts Stolen . | . . . . . . . . . . . . . . . . . Parts Stripped . | . . . . . . . . . . . . . . . . . Power Chain Reactions 2 | . . . . . . . . . . 2 . . . . . . Alert | -11 -10 -10 -9 -9 -8 -7 -7 -6 -5 -5 -5 -5 -5 -4 -4 -4 ------- Run | Yrd Mat Min Mat Sto Mat Fac Low Zio Pro Fac Upp Upp War Pro Fac Ext Maximum Alert Level 2 | . . . 1 2 2 2 . . . 1 . . . . . . Low Security (%) 54 | 100 100 100 58 10 17 22 . . . 81 . . . . 100 100 Level 1 24 | . . . 41 49 21 38 . . . 18 . . . . . . Level 2 21 | . . . . 40 61 39 . . . . . . . . . . Level 3 . | . . . . . . . . . . . . . . . . . Level 4 . | . . . . . . . . . . . . . . . . . Level 5 . | . . . . . . . . . . . . . . . . . High Security . | . . . . . . . . . . . . . . . . . Max Security . | . . . . . . . . . . . . . . . . . Peak Influence 633 | 5 56 40 376 622 633 487 . . . 251 . . . . 7 162 Initial 282 | . . . . 153 243 282 . . . . . . . . . . Average 211 | . 15 6 187 395 407 339 . . . 65 . . . . . 25 Influence Increases 6410 | 5 250 55 926 1239 926 868 . . 280 457 110 110 290 150 11 733 Destroy 0b10 Robot/C 3940 | . 140 40 580 520 600 520 . . 240 260 100 100 240 120 . 480 Destroy 0b10 Robot/NC 195 | 5 15 5 35 15 25 35 . . . 20 . . 5 . 5 30 Destroy Leader 876 | . 46 10 160 144 136 144 . . 40 62 10 10 . 30 2 82 Allied During Kill 225 | . . . . 174 . 9 . . . . . . . . . 42 Successful Hack 235 | . 19 . 45 33 17 93 . . . 16 . . . . . 12 Disable Machine 225 | . . . 45 45 30 15 . . . 75 . . . . . 15 Anti-Garrison Action 200 | . . . . 200 . . . . . . . . . . . . Destroy Structure 229 | . . . 31 33 28 37 . . . 24 . . . . 4 72 Partial Spotted 45 | . 15 . . 15 15 . . . . . . . . . . . Lose Combat Pursuer 240 | . 15 . 30 60 75 15 . . . . . . 45 . . . Influence Decreases 6366 | 5 250 55 562 1027 879 1313 178 . 280 256 225 196 104 336 11 689 Entered New Map 1230 | . . . . 211 333 341 67 . . . 75 17 . 186 . . Time Decay 3865 | 5 230 55 512 446 526 622 111 . 260 236 150 179 74 140 11 308 Lost Part 545 | . 20 . 50 20 20 40 . . 20 20 . . 30 10 . 315 Lost Ally 276 | . . . . 200 . 10 . . . . . . . . . 66 Purge Threat 450 | . . . . 150 . 300 . . . . . . . . . . Squads Dispatched 36 | . 2 . 2 4 5 8 . . . 11 . . . . 1 3 Investigation 8 | . . . 1 1 1 2 . . . 1 . . . . 1 1 Extermination 6 | . . . . . . 4 . . . 2 . . . . . . Reinforcement 16 | . 2 . 1 3 2 2 . . . 4 . . . . . 2 Assault 2 | . . . . . 2 . . . . . . . . . . . Garrison 4 | . . . . . . . . . . 4 . . . . . . Intercept . | . . . . . . . . . . . . . . . . . Searches Triggered . | . . . . . . . . . . . . . . . . . Construction Impeded 3 | . . . . 1 . . . . . 1 . . . . . 1 Haulers Reinforced 1 | . . . . . . . . . . 1 . . . . . . Active Scanning Responses . | . . . . . . . . . . . . . . . . . Cargo Convoy Interrupts . | . . . . . . . . . . . . . . . . . Stealth | -11 -10 -10 -9 -9 -8 -7 -7 -6 -5 -5 -5 -5 -5 -4 -4 -4 --------- Run | Yrd Mat Min Mat Sto Mat Fac Low Zio Pro Fac Upp Upp War Pro Fac Ext Distress Signals 12 | . 1 . 2 3 2 1 . . . 1 . . . . . 2 Communications Jammed . | . . . . . . . . . . . . . . . . . Distress Signals . | . . . . . . . . . . . . . . . . . Times Spotted 293 | . 16 2 38 29 47 33 . . 12 16 3 6 48 6 1 36 Peak Tracking Total 16 | . 5 2 4 6 7 5 . . 4 6 5 4 16 3 1 7 Tactical Retreats 13 | . 1 . 2 3 4 1 . . . . . . 2 . . . Traps | -11 -10 -10 -9 -9 -8 -7 -7 -6 -5 -5 -5 -5 -5 -4 -4 -4 ------- Run | Yrd Mat Min Mat Sto Mat Fac Low Zio Pro Fac Upp Upp War Pro Fac Ext Traps Triggered 15 | . . . 1 4 2 2 . . . 2 . . . . 2 2 Indirectly 2 | . . . . . . . . . . 2 . . . . . . Trap Hack Attempts . | . . . . . . . . . . . . . . . . . Triggered . | . . . . . . . . . . . . . . . . . Disarmed . | . . . . . . . . . . . . . . . . . Reprogrammed . | . . . . . . . . . . . . . . . . . Reused . | . . . . . . . . . . . . . . . . . Traps Extracted . | . . . . . . . . . . . . . . . . . Installed . | . . . . . . . . . . . . . . . . . Triggered . | . . . . . . . . . . . . . . . . . Machines | -11 -10 -10 -9 -9 -8 -7 -7 -6 -5 -5 -5 -5 -5 -4 -4 -4 ---------- Run | Yrd Mat Min Mat Sto Mat Fac Low Zio Pro Fac Upp Upp War Pro Fac Ext Machines Disabled 15 | . . . 3 3 2 1 . . . 5 . . . . . 1 Max in Single Turn 1 | . . . 1 1 1 1 . . . 1 . . . . . 1 Garrison Access 3 | . . . . 1 . 1 . . . . . . . . 1 . Energy Cycler 1 | . . . . . . . . . . . . . . . . 1 Machines Repaired . | . . . . . . . . . . . . . . . . . Machines Dismantled . | . . . . . . . . . . . . . . . . . Machines Sabotaged . | . . . . . . . . . . . . . . . . . Overloaded Fab Kills . | . . . . . . . . . . . . . . . . . Hacking | -11 -10 -10 -9 -9 -8 -7 -7 -6 -5 -5 -5 -5 -5 -4 -4 -4 --------- Run | Yrd Mat Min Mat Sto Mat Fac Low Zio Pro Fac Upp Upp War Pro Fac Ext Machines Accessed 56 | . 3 . 10 9 7 12 . . . 5 . . 4 . 1 5 Terminals 39 | . 3 . 8 7 6 8 . . . 2 . . . . . 5 Fabricators 3 | . . . . . . 1 . . . 2 . . . . . . Repair Stations 1 | . . . . . . 1 . . . . . . . . . . Recycling Units 3 | . . . 1 1 . . . . . 1 . . . . . . Scanalyzers 3 | . . . 1 . 1 1 . . . . . . . . . . Garrison Access 3 | . . . . 1 . 1 . . . . . . . . 1 . Total Hacks 176 | . 7 . 34 38 23 38 . . . 11 . . 4 . 2 19 Successful 101 | . 4 . 24 18 15 19 . . . 8 . . 4 . 1 8 Failed 74 | . 3 . 9 20 8 19 . . . 3 . . . . 1 11 Catastrophic 12 | . . . 2 3 3 3 . . . . . . . . . 1 Database Lockouts 1 | . . . 1 . . . . . . . . . . . . . Manual 101 | . 7 . 20 27 15 22 . . . 4 . . . . . 6 Terminals 133 | . 7 . 28 30 16 28 . . . 5 . . . . . 19 Fabricators 7 | . . . . . . 3 . . . 4 . . . . . . Repair Stations 3 | . . . . . . 3 . . . . . . . . . . Recycling Units 7 | . . . 1 4 . . . . . 2 . . . . . . Scanalyzers 15 | . . . 5 . 7 3 . . . . . . . . . . Garrison Access 7 | . . . . 4 . 1 . . . . . . . . 2 . Terminal Hacks 29 | . . . 7 5 . 5 . . . 1 . . 4 . . 7 Record 3 | . . . . . . . . . . . . . 3 . . . Robot Analysis 1 | . . . . 1 . . . . . . . . . . . . Prototype ID Bank 2 | . . . 1 . . 1 . . . . . . . . . . Open Door 5 | . . . . 1 . . . . . . . . 1 . . 3 Branch Access Points 1 | . . . 1 . . . . . . . . . . . . . Terminal Index 3 | . . . 1 1 . 1 . . . . . . . . . . Alert Level 4 | . . . . 1 . 1 . . . 1 . . . . . 1 Unreport Threat 3 | . . . . 1 . 2 . . . . . . . . . . Transport Status 1 | . . . 1 . . . . . . . . . . . . . Hauler Manifests 1 | . . . 1 . . . . . . . . . . . . . Registered Components 2 | . . . 1 . . . . . . . . . . . . 1 Zone Layout 3 | . . . 1 . . . . . . . . . . . . 2 Fabricator Hacks 4 | . . . . . . 1 . . . 3 . . . . . . Network Status 2 | . . . . . . 1 . . . 1 . . . . . . Load Schematic 1 | . . . . . . . . . . 1 . . . . . . Build 1 | . . . . . . . . . . 1 . . . . . . Repair Station Hacks 2 | . . . . . . 2 . . . . . . . . . . Scan Component 1 | . . . . . . 1 . . . . . . . . . . Repair 1 | . . . . . . 1 . . . . . . . . . . Recycling Unit Hacks 4 | . . . 1 1 . . . . . 2 . . . . . . Report Inventory 3 | . . . 1 1 . . . . . 1 . . . . . . Retrieve Components 1 | . . . . . . . . . . 1 . . . . . . Scanalyzer 12 | . . . 4 . 7 1 . . . . . . . . . . Insert Component 3 | . . . . . 3 . . . . . . . . . . . Analyze 3 | . . . . . 3 . . . . . . . . . . . Retrieve Study 6 | . . . 4 . 1 1 . . . . . . . . . . Garrison Access Hacks 2 | . . . . . . 1 . . . . . . . . 1 . Seal Access 2 | . . . . . . 1 . . . . . . . . 1 . Unauthorized Hacks 48 | . 4 . 12 12 8 9 . . . 2 . . . . . 1 Terminals 46 | . 4 . 12 10 8 9 . . . 2 . . . . . 1 Assimilate 4 | . . . . 2 . 2 . . . . . . . . . . Botnet 9 | . 1 . 2 1 2 2 . . . 1 . . . . . . Disrupt 3 | . . . 1 . 1 . . . . . . . . . . 1 Operators 2 | . . . 1 1 . . . . . . . . . . . . Skim 28 | . 3 . 8 6 5 5 . . . 1 . . . . . . Fabricators . | . . . . . . . . . . . . . . . . . Repair Stations . | . . . . . . . . . . . . . . . . . Recycling Units 1 | . . . . 1 . . . . . . . . . . . . Mask 1 | . . . . 1 . . . . . . . . . . . . Scanalyzers . | . . . . . . . . . . . . . . . . . Garrison Access 1 | . . . . 1 . . . . . . . . . . . . Jam 1 | . . . . 1 . . . . . . . . . . . . Data Cores Recovered 1 | . . . . . . 1 . . . . . . . . . . Used 1 | . . . . . . 1 . . . . . . . . . . Hacking Detections 45 | . 3 . 8 8 7 11 . . . 4 . . . . 1 3 Full Trace Events 5 | . 1 . 1 . . 1 . . . 1 . . . . . 1 Feedback Events . | . . . . . . . . . . . . . . . . . Feedback Blocked . | . . . . . . . . . . . . . . . . . Robot Schematics Acquired 4 | . . . . . . . . 4 . . . . . . . . Robots Built . | . . . . . . . . . . . . . . . . . Authchips . | . . . . . . . . . . . . . . . . . Time . | . . . . . . . . . . . . . . . . . Total Robot Build Rating . | . . . . . . . . . . . . . . . . . Part Schematics Acquired 17 | . . . . . 3 . . 14 . . . . . . . . Parts Built 1 | . . . . . . . . . . 1 . . . . . . Authchips . | . . . . . . . . . . . . . . . . . Time 106 | . . . . . . . . . . 106 . . . . . . Total Part Build Rating 6 | . . . . . . . . . . 6 . . . . . . Part Studies Acquired 6 | . . . 4 . 1 1 . . . . . . . . . . Parts Repaired 1 | . . . . . . 1 . . . . . . . . . . Time 22 | . . . . . . 22 . . . . . . . . . . Parts Recycled . | . . . . . . . . . . . . . . . . . Recycled Matter . | . . . . . . . . . . . . . . . . . Retrieved Matter . | . . . . . . . . . . . . . . . . . Retrieved Components 2 | . . . . . . . . . . 2 . . . . . . Parts Scanalyzed 3 | . . . . . 3 . . . . . . . . . . . Part Schematics Acquired 3 | . . . . . 3 . . . . . . . . . . . Parts Damaged . | . . . . . . . . . . . . . . . . . Bothacking | -11 -10 -10 -9 -9 -8 -7 -7 -6 -5 -5 -5 -5 -5 -4 -4 -4 ------------ Run | Yrd Mat Min Mat Sto Mat Fac Low Zio Pro Fac Upp Upp War Pro Fac Ext Used RIF Installer . | . . . . . . . . . . . . . . . . . Robots Hacked . | . . . . . . . . . . . . . . . . . Non-combat . | . . . . . . . . . . . . . . . . . Combat . | . . . . . . . . . . . . . . . . . Robot Hacks Applied . | . . . . . . . . . . . . . . . . . Relay Couplers Released . | . . . . . . . . . . . . . . . . . Fabnet Peak Effective % . | . . . . . . . . . . . . . . . . . Robots Rewired 6 | . . . . 1 . 1 . . . . . . . . . 4 Allies Hacked . | . . . . . . . . . . . . . . . . . Hacks Repelled . | . . . . . . . . . . . . . . . . . Allies | -11 -10 -10 -9 -9 -8 -7 -7 -6 -5 -5 -5 -5 -5 -4 -4 -4 -------- Run | Yrd Mat Min Mat Sto Mat Fac Low Zio Pro Fac Upp Upp War Pro Fac Ext Total Allies 19 | . . . . 10 . 1 . . . . . . . . . 8 Largest Group 10 | . . . . 10 . 1 . . . . . . . . . 4 Highest-Rated Group 151 | . . . . 88 . 34 . . . . . . . . . 151 Highest-Rated Ally 51 | . . . . 16 . 34 . . . . . . . . . 51 Total Orders 10 | . . . . 1 . 2 . . . . . . . . 1 6 STAY 1 | . . . . . . . . . . . . . . . . 1 FOLLOW 1 | . . . . . . . . . . . . . . . . 1 EXPLORE 4 | . . . . 1 . 2 . . . . . . . . . 1 RETURN 4 | . . . . . . . . . . . . . . . 1 3 Ally Attacks 146 | . . . . 94 . 10 . . . . . . . . . 42 Total Damage 2379 | . . . . 790 . 420 . . . . . . . . . 1169 Kills 17 | . . . . 9 . 4 . . . . . . . . . 4 Allies Corrupted . | . . . . . . . . . . . . . . . . . Allies Melted . | . . . . . . . . . . . . . . . . . Intel | -11 -10 -10 -9 -9 -8 -7 -7 -6 -5 -5 -5 -5 -5 -4 -4 -4 ------- Run | Yrd Mat Min Mat Sto Mat Fac Low Zio Pro Fac Upp Upp War Pro Fac Ext Active Infowar (turns) 12473 | 16 721 352 254 . 1294 2115 488 1231 863 813 527 630 1001 558 496 1114 Optics 4120 | . . . . . . 2093 488 1231 308 . . . . . . . Sensors 9868 | . . . . . 1294 1135 488 1231 863 813 527 630 1001 558 496 832 Terrain 2558 | . . . . . . . . . . 797 527 630 604 . . . Structural 1111 | . 505 352 254 . . . . . . . . . . . . . Traps 90 | . . . . . . . . . . . . . . . . 90 Seismic 232 | 16 216 . . . . . . . . . . . . . . . Jamming 263 | . . . . . . . . . . . . . . . . 263 Robot Analysis Total 1 | . . . . 1 . . . . . . . . . . . . Derelict Logs Recovered 5 | . . . . . . . 1 1 2 . 1 . . . . . Drone Launches 8 | . . . . 1 . 3 . . . . . . . . 1 3 Drone Recoveries 7 | . . . . 1 . 2 . . . . . . . . 1 3 Exploration | -11 -10 -10 -9 -9 -8 -7 -7 -6 -5 -5 -5 -5 -5 -4 -4 -4 ------------- Run | Yrd Mat Min Mat Sto Mat Fac Low Zio Pro Fac Upp Upp War Pro Fac Ext Turns Passed 15587 | 98 764 352 1674 1117 1476 2115 488 1231 863 813 527 630 1001 558 496 1384 Spaces Moved 7645 | 53 400 207 816 537 657 1016 302 756 429 383 321 357 548 206 203 454 Core 4 | 3 . . . . . . . . . . . . . . . 1 Treads 6580 | 50 127 . 402 537 657 1016 302 756 429 383 321 357 548 206 203 286 Legs 174 | . . . 40 . . . . . . . . . . . . 134 Wheels 887 | . 273 207 374 . . . . . . . . . . . . 33 Hover . | . . . . . . . . . . . . . . . . . Flight . | . . . . . . . . . . . . . . . . . Fastest Speed 50 | 50 95 155 145 160 160 162 162 160 160 160 160 160 160 160 232 160 Average Speed 168 | 153 144 155 160 174 166 162 162 160 160 160 160 160 160 221 232 218 Slowest Speed 2000 | 160 160 155 240 200 200 165 162 162 240 160 160 160 240 240 232 2000 Overloaded Moves . | . . . . . . . . . . . . . . . . . Propulsion Burnouts . | . . . . . . . . . . . . . . . . . Robots Hopped . | . . . . . . . . . . . . . . . . . Potential Cave-ins 4 | . . . . 4 . . . . . . . . . . . . Cave-ins Triggered . | . . . . . . . . . . . . . . . . . Exploration Rate (%) 51 | 4 54 58 82 81 69 35 40 81 56 11 58 55 82 38 6 61 Regions Visited 16 Branch Regions 10 Pre-discovered Areas 9 | . . . 1 1 3 1 . 2 . . 1 . . . . . Known Exits Taken 13 | . . . 1 1 1 1 1 1 1 1 1 1 1 1 1 . Unknown Exits Taken 3 | 1 1 1 . . . . . . . . . . . . . . Scrap Searched 10 | . . . . . . . 1 3 3 . 1 1 . 1 . . Spaces Dug 81 | . . . . 49 8 10 . . . 10 . 2 . . 2 . Terrain Destroyed 246 | . . . 36 60 29 14 1 . 16 14 24 10 1 9 2 30 Melee 34 | . . . . 2 8 10 . . . 10 . 2 . . 2 . Projectile 47 | . . . . . 5 4 1 . 5 4 . 1 1 9 . 17 AOE 165 | . . . 36 58 16 . . . 11 . 24 7 . . . 13 Terrain Rammed . | . . . . . . . . . . . . . . . . . Walls Destroyed . | . . . . . . . . . . . . . . . . . Machines Disabled . | . . . . . . . . . . . . . . . . . Actions | -11 -10 -10 -9 -9 -8 -7 -7 -6 -5 -5 -5 -5 -5 -4 -4 -4 --------- Run | Yrd Mat Min Mat Sto Mat Fac Low Zio Pro Fac Upp Upp War Pro Fac Ext Total 9287 | 63 509 218 1027 624 907 1355 301 774 530 499 327 382 606 253 221 691 Wait 527 | . 27 . 38 8 128 195 . 1 31 34 . . 8 4 8 45 Move 7629 | 52 399 206 815 536 656 1015 301 755 428 382 320 356 547 205 202 454 Hop . | . . . . . . . . . . . . . . . . . Pick Up 139 | 2 18 2 31 4 10 22 . 6 6 10 1 1 4 5 3 14 Fast Attach 47 | 7 . . 1 1 3 5 . . 1 4 . 1 1 . . 23 Attach 59 | . 2 . 8 1 1 5 . . 7 4 . . 3 9 1 18 Detach 1 | . . . . . . . . . . . . . . 1 . . Swap 110 | . 5 . 17 14 15 14 . 4 8 6 1 3 7 . 2 14 Drop 111 | . 7 . 27 8 13 19 . 7 3 10 . 1 4 1 . 11 Fire 473 | 2 47 10 86 41 53 41 . . 42 35 5 5 32 28 1 45 Melee 141 | . . . . 5 23 32 . 1 4 14 . 15 . . 4 43 Ram 6 | . 4 . 2 . . . . . . . . . . . . . Kick . | . . . . . . . . . . . . . . . . . Crush 16 | . . . 2 4 5 5 . . . . . . . . . . Escape Stasis 10 | . . . . . . . . . . . . . . . . 10 Rewire 18 | . . . . 2 . 2 . . . . . . . . . 14 Trap . | . . . . . . . . . . . . . . . . . Miscellaneous . | . . . . . . . . . . . . . . . . . Route ------- -11/Scrapyard -10/Materials (discovered 2 exits: *Mat / [*Min]) -10/Mines (discovered 3 exits: *Mat x2 / [Sub]) -9/Materials (discovered 5 exits: *Mat x3 / *Min / *Sto) -9/Storage (discovered 2 exits: *Mat / Rec) -8/Materials (discovered 3 exits: *Fac x3) -7/Factory (discovered 5 exits: *Fac x3 / *Low x2) -7/Lower Caves (discovered 2 exits: Low / *Zio) -6/Zion -5/Proximity Caves -5/Factory (discovered 2 exits: *Upp x2) -5/Upper Caves -5/Upper Caves -5/Warlord -4/Proximity Caves -4/Factory -4/Extension History --------- Turn | Location | Event 37 | -11/Scrapyard | Discovered new exit (range 16) 99 | -11/Scrapyard | Entered Materials 173 | -10/Materials | Discovered new exit (range 16) 300 | -10/Materials | Build established: Mutant 356 | -10/Materials | Discovered new exit (range 6) 863 | -10/Materials | Entered Mines 878 | -10/Mines | Core integrity fell below 50% 888 | -10/Mines | Met a Derelict bent on vengeance 914 | -10/Mines | Discovered new exit (range 6) 1123 | -10/Mines | Discovered new exit (range 8) 1179 | -10/Mines | Discovered new exit (range 6) 1215 | -10/Mines | Entered Materials 1215 | -9/Materials | Evolved 2 slots: Propulsion x1, Utility x1 1668 | -9/Materials | Discovered new exit (range 10) 1894 | -9/Materials | Central database locked down 2055 | -9/Materials | Discovered new exit (range 8) 2408 | -9/Materials | Discovered new exit (range 8) 2614 | -9/Materials | Learned location of Zion (-6) 2664 | -9/Materials | Learned location of 1 exit from Recycling 2693 | -9/Materials | Identified exit to Mines 2693 | -9/Materials | Identified exit to Storage 2706 | -9/Materials | Identified exit to Materials 2775 | -9/Materials | Learned Storage security intel 2778 | -9/Materials | Learned location of 1 exit from Storage 2843 | -9/Materials | Learned location of 1 exit from Recycling 2885 | -9/Materials | Learned 2 Materials zone layouts 2889 | -9/Materials | Entered Storage 2891 | -9/Storage | Identified exit to Recycling 2939 | -9/Storage | Assisted by bots powering up and referring to "LRC-V3" 3230 | -9/Storage | Build established: Commander-Mutant 3441 | -9/Storage | Lost 6 allies 3687 | -9/Storage | Core integrity fell below 50% 3694 | -9/Storage | Build established: Mutant 3784 | -9/Storage | Learned 2 Materials zone layouts 3879 | -9/Storage | Learned location of 1 exit from Storage 3911 | -9/Storage | Learned 4 Materials zone layouts 3944 | -9/Storage | Learned 2 Materials zone layouts 3995 | -9/Storage | Learned location of Mines (-8) 4006 | -9/Storage | Entered Materials 4006 | -8/Materials | Evolved 2 slots: Propulsion x1, Utility x1 4007 | -8/Materials | Identified exit to Factory 4491 | -8/Materials | Discovered exit to Factory (range 14) 4806 | -8/Materials | First assault squad dispatched 5227 | -8/Materials | Discovered exit to Factory (range 5) 5424 | -8/Materials | Learned 2 Lower Caves zone layouts 5468 | -8/Materials | Learned 4 Factory zone layouts 5482 | -8/Materials | Entered Factory 5482 | -7/Factory | Evolved 2 slots: Utility x2 5764 | -7/Factory | Discovered new exit (range 10) 5784 | -7/Factory | Identified exit to Factory 6231 | -7/Factory | Discovered exit to Factory (range 14) 6734 | -7/Factory | Repaired Med. Treads 6894 | -7/Factory | Build established: Assassin 7182 | -7/Factory | Discovered new exit (range 14) 7217 | -7/Factory | Identified exit to Lower Caves 7402 | -7/Factory | Learned location of 1 exit from Lower Caves 7462 | -7/Factory | Loaded intel: 104 trap records 7483 | -7/Factory | Build established: Skirmisher 7597 | -7/Factory | Entered Lower Caves 7598 | -7/Lower Caves | A Derelict revealed a hidden shortcut to a safe place 7598 | -7/Lower Caves | Identified exit to Lower Caves 7667 | -7/Lower Caves | Learned 4 Factory zone layouts 7934 | -7/Lower Caves | Spotted B-75 Beast 8083 | -7/Lower Caves | Identified exit to Zion 8085 | -7/Lower Caves | Entered Zion 8173 | -6/Zion | System corruption cleaned by Quarantine Array 8260 | -6/Zion | Given the Hacking Drone Bay 8261 | -6/Zion | Found Prototype Device 8483 | -6/Zion | Learned Factory emergency access door positions 8630 | -6/Zion | Learned location of Quarantine (-3) 9284 | -6/Zion | Discovered new exit (range 18) 9288 | -6/Zion | Found CR-A16's Pointy Stick 9315 | -6/Zion | Identified exit to Proximity Caves 9316 | -6/Zion | Entered Proximity Caves 9494 | -5/Proximity Caves | Attracted the attention of an 0b10 checkpoint 9611 | -5/Proximity Caves | Spotted B-75 Beast 9625 | -5/Proximity Caves | Revealed the true nature of CR-A16's Pointy Stick 9628 | -5/Proximity Caves | Destroyed B-75 Beast 9902 | -5/Proximity Caves | Build established: Mutant 9960 | -5/Proximity Caves | Lost 5 parts (3n1u1w) 10139 | -5/Proximity Caves | Learned Factory terminal intel 10152 | -5/Proximity Caves | Learned location of 1 exit from Factory 10157 | -5/Proximity Caves | Discovered new exit (range 15) 10177 | -5/Proximity Caves | Identified exit to Factory 10179 | -5/Proximity Caves | Entered Factory 10179 | -5/Factory | Evolved 4 slots: Power x1, Propulsion x1, Utility x1, Weapon x1 10180 | -5/Factory | Identified exit to Upper Caves 10183 | -5/Factory | Loaded intel: 26 terminal locations 10294 | -5/Factory | Garrison activated, responded to threat 10445 | -5/Factory | Fabricated Hvy. Treads? 10583 | -5/Factory | Discovered exit to Upper Caves (range 3) 10644 | -5/Factory | Build established: Assassin 10783 | -5/Factory | Garrison activated, responded to threat 10992 | -5/Factory | Entered Upper Caves 11461 | -5/Upper Caves | Discovered new exit (range 11) 11517 | -5/Upper Caves | Identified exit to Upper Caves 11519 | -5/Upper Caves | Entered another Upper Caves area 12089 | -5/Upper Caves | Attracted the attention of an 0b10 checkpoint 12135 | -5/Upper Caves | Discovered new exit (range 6) 12141 | -5/Upper Caves | Identified exit to Warlord 12149 | -5/Upper Caves | Entered Warlord 12202 | -5/Warlord | System corruption cleaned by Quarantine Array 12572 | -5/Warlord | Met Warlord 12597 | -5/Warlord | Warlord's base attacked by MAIN.C 12753 | -5/Warlord | Found Prototype Device 12753 | -5/Warlord | Identified Minesniffer Drone Bay 12947 | -5/Warlord | Warlord forces counterattacked 13000 | -5/Warlord | Spotted Striker 13031 | -5/Warlord | P-80 Master assimilated allied EB-YMC(g) 13056 | -5/Warlord | Lost 9 allies 13102 | -5/Warlord | Spotted Executioner 13104 | -5/Warlord | Destroyed Executioner 13114 | -5/Warlord | Spotted Executioner 13114 | -5/Warlord | Spotted Striker 13134 | -5/Warlord | Discovered new exit (range 9) 13140 | -5/Warlord | Destroyed Striker 13148 | -5/Warlord | Identified exit to Proximity Caves 13150 | -5/Warlord | Entered Proximity Caves 13168 | -4/Proximity Caves | Lost 6 allies 13186 | -4/Proximity Caves | Lost 3 parts (2n1w) 13344 | -4/Proximity Caves | Build established: Scavenger-Mutant 13373 | -4/Proximity Caves | Lost 4 parts (2n1u1w) 13699 | -4/Proximity Caves | Discovered new exit (range 3) 13703 | -4/Proximity Caves | Identified exit to Factory 13708 | -4/Proximity Caves | Entered Factory 13708 | -4/Factory | Evolved 2 slots: Propulsion x1, Utility x1 13715 | -4/Factory | Identified Hacking Drone Bay 13755 | -4/Factory | Build established: Scavenger-Skirmisher 14169 | -4/Factory | Discovered new exit (range 15) 14202 | -4/Factory | Identified exit to Extension 14204 | -4/Factory | Entered Extension 14284 | -4/Extension | Build established: Scavenger-Mutant 14390 | -4/Extension | Lost 3 parts (2n1u) 14501 | -4/Extension | Lost 4 parts (3n1u) 14691 | -4/Extension | Lost 4 parts (3n1u) 14880 | -4/Extension | Lost 3 parts (1p1n1w) 14991 | -4/Extension | Spotted B-86 Titan 15002 | -4/Extension | Spotted B-86 Titan 15033 | -4/Extension | Destroyed B-86 Titan 15046 | -4/Extension | Destroyed B-86 Titan 15062 | -4/Extension | Lost 4 allies 15078 | -4/Extension | Core integrity fell below 50% 15104 | -4/Extension | Disrupted transfer network 15116 | -4/Extension | Lost 22 parts (3p10n6u3w) 15172 | -4/Extension | Rescued a captive Derelict 15238 | -4/Extension | Rescued a captive Derelict 15239 | -4/Extension | Rescued a captive Derelict 15341 | -4/Extension | Rescued a captive Derelict 15507 | -4/Extension | Energy Cycler disabled 15507 | -4/Extension | Rescued a captive Derelict 15507 | -4/Extension | Rescued a captive Derelict 15508 | -4/Extension | Rescued a captive Derelict 15519 | -4/Extension | Rescued a captive Derelict 15581 | -4/Extension | Core integrity fell below 20% 15588 | -4/Extension | Destroyed by G-73 Enforcer with Phase Gun Last Messages --------------- 15570_ Dropped Lrg. Matter Pod. 15570_ U-05 Engineer lays Concrete. 15571_ Adv. Shield Generator destroyed. 15571_ Extracted 150 matter. 15571_ U-05 Engineer lays Concrete. 15574_ Flexi-carbon Leg destroyed. 15574_ Critical hit (Burn: +50). 15575_ U-05 Engineer lays Concrete. 15576_ U-05 Engineer builds a Wall. 15577_ Adv. Transmission Jammer destroyed. 15578_ Prc. Grenade Launcher destroyed. 15579_ Hvy. Flak Cannon destroyed. 15580_ Critical hit (Burn: +37). 15581_ U-05 Engineer lays Concrete. 15582_ Adv. System Shield destroyed. 15583_ U-05 Engineer builds a Wall. 15583_ Imp. Corruption Screen destroyed. 15583_ Imp. Coolant Injector destroyed. 15586_ Rnf. Fission Core destroyed. 15588_ U-05 Engineer lays Concrete. Map ----- +----------------------------------------------------+ | | | | | | | | | | | | | | | | | | | | | | | | | | | | | | | | | | | ?????????????????????????????????????????????????? | | ??????????????##?????????????????????????????????? | | #######??????## ##???????????????????????#####???? | | ########%#;######################### ???? | | """ + %% + ???? | | "R ######## ;;;#;;;########### ???? | | """ #?????## ;;;; ;;########?# ???? | | #?????#; % %=%=%%%=#?# ???? | | #?????## @/ % %[;;%## #?####+???? | | ###+###??????# ##### #????# ???? | | ## #???????# s ;#??# #????# ???? | | T #???????# s ##??# #???## ???? | | ## ! #????#### ggsug %;#??# ##### ???? | | ?#%%##????# % ; #?# T???? | | ?## ####### ##### s %##;;#;# #?# ##### ???? | | ??#%= #???# %########### #???###???? | | ??#################???# % #????# ???? | | ??????????????????????##################????##???? | | ????????????????????????????????????????????##???? | | ????????????????????????????????????????????##???? | | ????????????????????????????????????????????##???? | | ?????????????????????????????????????????????????? | | ?????????????????????????????????????????????????? | | ?????????????????????????????????????????????????? | | ?????????????????????????????????????????????????? | | ?????????????????????????????????????????????????? | | ?????????????????????????????????????????????????? | | ?????????????????????????????????????????????????? | | ?????????????????????????????????????????????????? | | ?????????????????????????????????????????????????? | | ?????????????????????????????????????????????????? | | ?????????????????????????????????????????????????? | | ?????????????????????????????????????????????????? | +----------------------------------------------------+ Best States ------------- Heat Dissipation 43 Coolant Potential 80 Energy Generation 45 Energy Capacity 565 Matter Stores 300 Matter Capacity 300 Sight Range 20 Robot Scan Range 15 Terrain Scan Range 16 Terrain Scan Density 10 Jamming Range 16 Corruption Block 15 Armor Coverage 375 Propulsion Shielding 66 Point Defense Rating 80 Evasion (%) 41 Targeting Accuracy 8 Core Analysis 6 Armor Integrity Analysis 30 Recoil Reduction 6 Offensive Hacking 12 Defensive Hacking 14 Item Schematics ----------------- Lrg. Storage Unit | -8/Materials | Scanalyzed Drone Bay | -8/Materials | Scanalyzed Lgt. Treads | -8/Materials | Scanalyzed Adv. Heat Sink | -6/Zion | Archive Lrn. Tractor Beam | -6/Zion | Archive Power Amplifier | -6/Zion | Archive Field Propulsion Drive | -6/Zion | Archive Hvy. Plasma Cannon | -6/Zion | Archive Arm. Medium Treads | -6/Zion | Archive Power Sword | -6/Zion | Archive Imp. Antigrav System | -6/Zion | Archive Adv. Reaction Control System | -6/Zion | Archive Imp. Hardlight Generator | -6/Zion | Archive Wave Gun | -6/Zion | Archive Force Field | -6/Zion | Archive Neutrino Core | -6/Zion | Archive Hvy. Treads | -6/Zion | Archive Robot Schematics ------------------ G-50 Soldier | -6/Zion | Archive M-14 Sweeper | -6/Zion | Archive E-15 Imp | -6/Zion | Archive X-82 Rainmaker | -6/Zion | Archive Fabricated ------------ Hvy. Treads | x1 | -5/Factory Repaired ---------- Med. Treads | 36% | -7/Factory Studied --------- Hvy. Assault Rifle | -9/Materials | Hacked Wheel | -9/Materials | Hacked Shotgun | -9/Materials | Hacked Lgt. Treads | -9/Materials | Hacked Flak Cannon | -8/Materials | Hacked Arm. Treads | -7/Factory | Hacked Alien Tech Used ----------------- None Achievements -------------- Explosive Keycard Challenges ------------ None Game ------ Seed CommMultireflexNetwork Manual? 0 Play Time 01:30:23 Cumulative 149.0 hours Start 2026.01.27 @ 16:48:39 End 2026.01.28 @ 00:24:49 Sessions 5 Manual Loads 0 Difficulty Rogue Special Mode None Game No. 366 Rogue 364 Adventurer 2 Explorer 0 Win Type - Total 1 Types 1/0/0/0/0/0/0/0/0/0 Lore% 81 Gallery% 64 Achievement% 44 Wizard Run 0 Options --------- Layout 2 ASCII 0 Keyboard 0 Movement Numpad Keybinds 0 Fullscreen 2 Font 24/Smallcaps Map View 50x44 Zoom Use 0% Tactical HUD 1 Map Filters NONE Filters NONE Steam 1 RUN: bea9f82e-29b8-44b8-bd16-9adf79b646ec